bitfinex/quotes_SOLUSD_20240813
["timestamp","ask_amount","ask_price","bid_price","bid_amount"]
[1723556921656,1.69701072,147.35,147.26,45.25098]
[1723556921867,31.7069,147.37,147.27,65.0]
[1723556922031,31.7069,147.37,147.27,20.0]
[1723556922232,31.7069,147.37,147.28,45.0]
[1723556922430,31.7069,147.37,147.29,20.0]
[1723556922663,31.7069,147.37,147.3,45.0]
[1723556922831,31.7069,147.37,147.31,20.0]
[1723556923033,31.7069,147.37,147.32,45.0]
[1723556923356,31.7069,147.37,147.26,66.48]
[1723556923852,31.7069,147.37,147.28,20.0]
[1723556924051,31.7069,147.37,147.27,20.0]
[1723556924052,31.7069,147.37,147.31,20.0]
[1723556924259,31.7069,147.37,147.32,20.0]
[1723556924559,31.7069,147.37,147.33,0.12549]
[1723556924748,31.7069,147.37,147.33,0.50196]
[1723556925136,31.7069,147.37,147.33,20.50196]
[1723556925350,31.761,147.41,147.35,0.12549]
[1723556925559,31.761,147.41,147.37,20.0]
[1723556925855,31.761,147.41,147.39,0.12549]
[1723556928132,31.761,147.41,147.38,20.25098]
[1723556928336,31.761,147.41,147.38,0.25098]
[1723556928534,32.3569,147.45,147.38,0.25098]
[1723556928748,32.3569,147.45,147.39,20.0]
[1723556928960,32.3569,147.45,147.4,20.25098]
[1723556929264,32.3569,147.45,147.41,0.12549]
[1723556929553,32.3569,147.45,147.41,0.25098]
[1723556929756,32.3569,147.45,147.42,0.37647]
[1723556929935,32.3569,147.45,147.42,0.25098]
[1723556930137,32.3569,147.45,147.43,0.25098]
[1723556931359,1.69586257,147.44,147.42,0.25098]
[1723556931542,1.69586257,147.44,147.42,0.12549]
[1723556931851,32.3569,147.45,147.33,20.0]
[1723556932361,32.3569,147.45,147.3,78.7335]
[1723556932362,46.43,147.43,147.3,78.7335]
[1723556932960,8.47970875,147.42,147.3,12.3035]
[1723556933129,32.0003,147.41,147.28,20.0]
[1723556933337,12.9276,147.39,147.29,30.0]
[1723556933532,1.69658634,147.38,147.29,30.0]
[1723556933845,1.69658634,147.38,147.26,12.9569]
[1723556934457,6.7857,147.37,147.25,27.09218722]
[1723556934761,32.0003,147.35,147.25,7.09218722]
[1723556934954,32.0003,147.35,147.26,20.0]
[1723556935163,1.69689951,147.34,147.25,9.74755121]
[1723556936170,32.0003,147.35,147.25,29.74755121]
[1723556936538,32.0003,147.35,147.25,7.09218722]
[1723556936840,12.1573,147.33,147.22,20.0]
[1723556937145,12.1573,147.33,147.24,7.09621176]
[1723556937975,1.69741263,147.32,147.24,7.09621176]
[1723556938137,30.0302,147.31,147.19,18.87809111]
[1723556938333,83.2488,147.31,147.2,8.15520312]
[1723556938564,83.2488,147.31,147.19,6.22369111]
[1723556938565,6.7889,147.3,147.21,7.09773157]
[1723556938776,76.4602,147.31,147.18,20.0]
[1723556939065,30.0302,147.31,147.2,27.09813293]
[1723556939277,30.0302,147.31,147.23,20.0]
[1723556939446,30.0302,147.31,147.22,20.0]
[1723556939644,30.0302,147.31,147.2,73.52813293]
[1723556939863,30.0302,147.31,147.2,53.52813293]
[1723556940163,30.0302,147.31,147.21,20.0]
[1723556940368,30.0302,147.31,147.21,40.0]
[1723556940550,30.0302,147.31,147.21,20.0]
[1723556940751,31.72765295,147.31,147.21,20.0]
[1723556940950,38.51605295,147.31,147.21,20.0]
[1723556941343,30.0302,147.31,147.21,20.0]
[1723556942571,30.0302,147.31,147.23,0.12549]
[1723556942877,30.0302,147.31,147.23,20.50196]
[1723556943041,30.0302,147.31,147.24,45.0]
[1723556943237,30.0302,147.31,147.25,0.50196]
[1723556943842,1.69741404,147.3,147.25,0.50196]
[1723556944041,30.0302,147.31,147.25,0.50196]
[1723556945078,31.72780725,147.31,147.25,0.50196]
[1723556945769,30.0302,147.31,147.23,20.0]
[1723556946068,30.0302,147.31,147.21,60.0]
[1723556946269,30.0302,147.31,147.23,20.0]
[1723556946467,30.0302,147.31,147.21,60.0]
[1723556946676,30.0302,147.31,147.21,20.0]
[1723556946842,1.69739733,147.3,147.22,45.50196]
[1723556947043,30.0302,147.31,147.24,0.12549]
[1723556947254,30.0302,147.31,147.24,45.50196]
[1723556948371,30.0302,147.31,147.24,65.50196]
[1723556948573,30.0302,147.31,147.26,0.12549]
[1723556948750,30.0302,147.31,147.28,20.0]
[1723556948957,30.0302,147.31,147.3,0.12549]
[1723556950954,30.0302,147.31,147.29,0.25098]
[1723556951250,30.0302,147.31,147.26,45.0]
[1723556952171,30.0302,147.31,147.22,7.09462565]
[1723556952172,36.8186,147.31,147.22,7.09462565]
[1723556952383,36.8186,147.31,147.19,20.0]
[1723556952566,47.25696458,147.3,147.2,20.0]
[1723556952875,38.77,147.3,147.2,20.0]
[1723556953256,6.7906,147.27,147.19,7.09768961]
[1723556953452,1.69827077,147.26,147.15,26.22369111]
[1723556953670,45.5599,147.28,147.17,7.09908852]
[1723556953671,38.77,147.28,147.17,7.09908852]
[1723556953871,47.2582013,147.28,147.17,7.09908852]
[1723556954083,6.7916,147.25,147.17,7.09908852]
[1723556954263,1.6981013,147.28,147.11,51.7735]
[1723556954264,30.62,147.22,147.11,51.7735]
[1723556954464,30.62,147.22,147.12,8.15886899]
[1723556954782,69.39,147.22,147.13,7.10077852]
[1723556955563,30.62,147.22,147.13,7.10077852]
[1723556955961,30.62,147.22,147.14,20.0]
[1723556956467,69.39,147.22,147.14,20.0]
[1723556956889,69.39,147.22,147.11,27.10171627]
[1723556957352,69.39,147.22,147.11,47.10171627]
[1723556957555,30.62,147.22,147.11,27.10171627]
[1723556958061,30.62,147.22,147.12,0.25098]
[1723556958473,30.62,147.22,147.15,0.12549]
[1723556958788,30.62,147.22,147.17,0.12549]
[1723556958966,30.62,147.22,147.17,104.27196]
[1723556959150,31.1501,147.26,147.18,20.0]
[1723556959354,31.1501,147.26,147.19,45.50196]
[1723556959553,31.1501,147.26,147.21,0.12549]
[1723556959765,32.84791226,147.26,147.21,45.37647]
[1723556959968,31.1501,147.26,147.22,0.12549]
[1723556960281,31.1501,147.26,147.23,0.12549]
[1723556960453,31.1501,147.26,147.23,0.37647]
[1723556960655,32.84791199,147.26,147.24,0.12549]
[1723556960868,32.84791199,147.26,147.25,0.12549]
[1723556961284,31.1501,147.26,147.25,0.37647]
[1723556961461,31.1501,147.26,147.25,0.50196]
[1723556964560,31.1501,147.26,147.14,20.0]
[1723556964760,1.69806216,147.25,147.16,20.0]
[1723556965081,31.1501,147.26,147.2,20.0]
[1723556965391,31.1501,147.26,147.21,20.0]
[1723556965694,32.0343,147.3,147.22,20.52594565]
[1723556965989,32.0343,147.3,147.24,38.89549]
[1723556966289,32.0343,147.3,147.26,0.12549]
[1723556967892,16.9579,147.43,147.26,0.12549]
[1723556967893,31.8085,147.34,147.27,38.77]
[1723556968099,31.32909071,147.34,147.3,0.12549]
[1723556968302,12.7319,147.39,147.3,85.50196]
[1723556968470,12.7319,147.39,147.3,65.50196]
[1723556968996,12.7319,147.39,147.32,0.12549]
[1723556969301,12.7319,147.39,147.32,65.50196]
[1723556969679,12.7319,147.39,147.34,0.12549]
[1723556969892,12.0387,147.45,147.34,65.50196]
[1723556970493,13.73475054,147.45,147.34,65.50196]
[1723556970798,13.73475054,147.45,147.34,65.0]
[1723556971091,32.6527,147.42,147.34,65.0]
[1723556971923,32.6527,147.42,147.35,0.25098]
[1723556972071,32.6527,147.42,147.37,0.12549]
[1723556972072,1.69638647,147.41,147.37,0.12549]
[1723556972268,32.6527,147.42,147.37,0.25098]
[1723556972499,1.69638547,147.41,147.3,38.77]
[1723556972668,40.46677939,147.41,147.31,20.0]
[1723556972872,39.4361,147.42,147.26,44.99369111]
[1723556972873,38.77,147.39,147.26,44.99369111]
[1723556973121,45.555,147.39,147.26,6.22369111]
[1723556973304,40.46696617,147.39,147.24,58.77]
[1723556973496,47.25202728,147.39,147.24,61.51138234]
[1723556973813,31.5854,147.38,147.26,20.0]
[1723556974019,31.5854,147.38,147.26,78.77]
[1723556974219,31.5854,147.38,147.3,20.0]
[1723556974513,31.5854,147.38,147.3,40.0]
[1723556974723,31.5854,147.38,147.31,20.0]
[1723556974891,31.5854,147.38,147.32,0.25098]
[1723556975397,31.5854,147.38,147.34,0.12549]
[1723556975596,31.5854,147.38,147.34,0.25098]
[1723556975802,31.5854,147.38,147.35,0.12549]
[1723556975996,31.5854,147.38,147.36,0.12549]
[1723556976282,1.69659237,147.37,147.36,0.25098]
[1723556976509,31.5854,147.38,147.36,0.12549]
[1723556976686,31.5854,147.38,147.24,38.77]
[1723556976687,1.69659018,147.37,147.24,38.77]
[1723556976887,1.69659018,147.37,147.24,58.77]
[1723556977089,1.69659018,147.37,147.24,78.77]
[1723556977384,31.5854,147.38,147.26,38.77]
[1723556977903,51.6896,147.37,147.23,47.76581199]
[1723556978106,51.6896,147.37,147.24,20.0]
[1723556978407,51.6896,147.37,147.25,20.0]
[1723556978611,51.6896,147.37,147.24,40.0]
[1723556978793,60.17259064,147.37,147.24,20.0]
[1723556978984,53.38669064,147.37,147.24,20.0]
[1723556979187,51.6896,147.37,147.24,20.0]
[1723556979509,51.6896,147.37,147.25,0.12549]
[1723556979688,51.6896,147.37,147.25,45.37647]
[1723556980008,51.6896,147.37,147.27,0.12549]
[1723556980181,51.6896,147.37,147.27,45.50196]
[1723556980520,51.6896,147.37,147.28,0.52455535]
[1723556980698,12.9196,147.37,147.3,0.12549]
[1723556981027,12.9196,147.37,147.3,65.12549]
[1723556981316,12.9196,147.37,147.32,0.12549]
[1723556982511,1.69692895,147.36,147.32,0.12549]
[1723556982712,12.9196,147.37,147.32,0.12549]
[1723556984092,12.9196,147.37,147.32,0.64930077]
[1723556984293,12.9196,147.37,147.34,0.12549]
[1723556984603,12.9196,147.37,147.34,0.25098]
[1723556984791,12.9196,147.37,147.35,0.12549]
[1723556984995,12.9196,147.37,147.35,0.25098]
[1723556985293,12.9196,147.37,147.34,0.12549]
[1723556985294,14.61658236,147.37,147.34,0.12549]
[1723556985495,14.61658236,147.37,147.31,0.12549]
[1723556985722,14.61658236,147.37,147.24,38.77]
[1723556985894,14.61658236,147.37,147.23,22.74494589]
[1723556985895,38.77,147.36,147.23,22.74494589]
[1723556986097,12.9196,147.37,147.23,20.0]
[1723556986396,12.9196,147.37,147.25,20.0]
[1723556986712,14.61664834,147.37,147.22,20.0]
[1723556986938,14.61692844,147.37,147.23,38.77]
[1723556987117,14.61692844,147.37,147.24,20.0]
[1723556987326,30.2524,147.35,147.24,20.0]
[1723556987494,1.69737055,147.34,147.21,61.49392188]
[1723556987700,1.69737055,147.34,147.21,2.72392188]
[1723556987701,13.1711,147.33,147.21,2.72392188]
[1723556987898,30.2524,147.32,147.21,7.09664619]
[1723556988727,69.0224,147.32,147.21,7.09664619]
[1723556989103,30.2524,147.32,147.23,20.0]
[1723556989310,30.2524,147.32,147.22,38.77]
[1723556989709,30.2524,147.32,147.23,40.0]
[1723556990019,30.2524,147.32,147.24,38.77]
[1723556990226,30.2524,147.32,147.26,20.12549]
[1723556990519,30.2524,147.32,147.28,0.12549]
[1723556990722,12.8796,147.37,147.28,0.64989047]
[1723556990926,33.2272,147.36,147.3,0.12549]
[1723556992619,33.2272,147.36,147.31,38.77]
[1723556992822,33.2272,147.36,147.32,66.02518694]
[1723556993006,33.2272,147.36,147.34,0.12549]
[1723556993208,33.2272,147.36,147.34,0.50196]
[1723556993425,33.2272,147.36,147.35,0.12549]
[1723556993726,33.2272,147.36,147.35,0.37647]
[1723556994030,33.2272,147.36,147.35,0.50196]
[1723556996001,13.0346,147.41,147.35,0.50196]
[1723556996220,32.1705,147.4,147.36,0.25098]
[1723556996427,32.1705,147.4,147.37,0.37647]
[1723556996628,32.1705,147.4,147.38,0.25098]
[1723556996803,32.1705,147.4,147.39,0.25098]
[1723556997121,32.1705,147.4,147.39,0.50196]
[1723556997613,32.1705,147.4,147.37,20.0]
[1723556997809,32.1705,147.4,147.34,20.0]
[1723556998724,30.7324,147.44,147.38,20.0]
[1723556998923,30.7324,147.44,147.39,104.27196]
[1723557000233,30.7324,147.44,147.39,65.50196]
[1723557000801,32.4994,147.48,147.41,58.89549]
[1723557001110,32.4994,147.48,147.43,58.89549]
[1723557001328,32.4994,147.48,147.45,0.12549]
[1723557002734,13.0644,147.53,147.48,0.12549]
[1723557002924,13.0644,147.53,147.5,0.12549]
[1723557003235,31.2002149,147.54,147.5,20.50196]
[1723557003544,31.2002149,147.54,147.5,65.50196]
[1723557004111,31.2002149,147.54,147.51,0.51843232]
[1723557004418,0.8414149,147.54,147.52,0.50196]
[1723557004634,0.8414149,147.54,147.53,0.12549]
[1723557005443,39.6731,147.68,147.56,20.0]
[1723557005611,71.6714,147.68,147.57,20.50196]
[1723557005939,32.9014,147.68,147.6,0.12549]
[1723557006119,32.9014,147.68,147.62,0.12549]
[1723557006303,1.8414149,147.69,147.62,20.50196]
[1723557006632,1.8414149,147.69,147.62,30.50196]
[1723557007049,0.8414149,147.69,147.62,30.50196]
[1723557007543,0.8414149,147.69,147.62,30.12549]
[1723557007737,0.8414149,147.69,147.63,45.0]
[1723557007910,0.8414149,147.69,147.64,0.12549]
[1723557008108,0.8414149,147.69,147.62,30.12549]
[1723557008309,12.4715,147.66,147.54,40.0]
[1723557008507,12.4715,147.66,147.56,50.0]
[1723557008707,12.4715,147.66,147.57,20.0]
[1723557009438,12.4715,147.66,147.58,50.0]
[1723557009737,12.4715,147.66,147.59,20.12549]
[1723557009928,12.4715,147.66,147.59,40.12549]
[1723557010225,12.4715,147.66,147.59,20.12549]
[1723557010436,12.4715,147.66,147.6,30.0]
[1723557010608,12.4715,147.66,147.61,0.12549]
[1723557011009,12.4715,147.66,147.61,65.50196]
[1723557011204,12.4715,147.66,147.61,45.50196]
[1723557011604,12.4715,147.66,147.61,0.12549]
[1723557011805,12.4715,147.66,147.61,30.0]
[1723557012017,12.4715,147.66,147.56,38.77]
[1723557012220,12.4715,147.66,147.57,20.0]
[1723557012430,19.2438,147.66,147.54,2.70906566]
[1723557012638,31.1244,147.6,147.5,20.0]
[1723557012812,31.1244,147.6,147.49,20.0]
[1723557013230,31.1244,147.6,147.48,58.77]
[1723557013433,38.77,147.56,147.43,20.0]
[1723557013635,38.77,147.58,147.45,26.783]
[1723557013809,12.3821,147.59,147.45,6.783]
[1723557013810,38.77,147.56,147.45,6.783]
[1723557014016,38.77,147.54,147.45,6.783]
[1723557014456,45.1806,147.52,147.45,6.783]
[1723557014739,46.87627698,147.52,147.41,6.783]
[1723557014943,46.8759281,147.52,147.41,6.783]
[1723557015234,38.77,147.48,147.41,6.783]
[1723557015434,1.69582637,147.47,147.41,6.783]
[1723557015741,6.7815,147.46,147.35,6.783]
[1723557015922,38.77,147.48,147.35,6.783]
[1723557015923,46.44,147.48,147.35,6.783]
[1723557016114,6.7814,147.47,147.35,6.783]
[1723557016532,6.7816,147.46,147.35,6.783]
[1723557016712,1.69618154,147.47,147.35,6.783]
[1723557016913,6.7828,147.43,147.38,6.785]
[1723557017246,16.9514,147.48,147.41,6.783]
[1723557017427,1.6960825,147.47,147.41,6.783]
[1723557017732,46.44,147.42,147.32,7.09193097]
[1723557017947,46.44,147.42,147.36,6.786]
[1723557017948,1.69698852,147.41,147.36,6.786]
[1723557018123,48.13674936,147.42,147.28,7.09356203]
[1723557018355,48.13674936,147.42,147.26,46.44]
[1723557018666,48.13674936,147.42,147.23,20.0]
[1723557018667,48.13674936,147.42,147.27,7.09422415]
[1723557018970,48.13674936,147.42,147.33,16.9676]
[1723557019466,53.2251,147.39,147.32,6.7878]
[1723557019836,48.13715802,147.39,147.29,16.9729]
[1723557020040,48.13715802,147.39,147.31,6.7883]
[1723557020471,48.13715802,147.39,147.27,7.09422415]
[1723557020472,6.7885,147.31,147.27,7.09422415]
[1723557020767,1.69783221,147.3,147.26,6.7907]
[1723557020942,1.69790166,147.29,147.26,6.7907]
[1723557021273,16.9652,147.36,147.21,7.09823972]
[1723557021274,46.44,147.36,147.21,7.09823972]
[1723557021471,50.8623,147.38,147.32,6.7875]
[1723557021636,6.7857,147.37,147.31,6.7883]
[1723557021956,1.69739635,147.36,147.33,6.7873]
[1723557022156,1.69727511,147.35,147.21,7.09823972]
[1723557022467,46.44,147.33,147.26,16.9759]
[1723557022647,1.69771281,147.32,147.26,16.9759]
[1723557022846,48.13771291,147.33,147.28,16.9734]
[1723557023062,44.0767,147.38,147.25,23.7685]
[1723557023063,46.44,147.3,147.25,23.7685]
[1723557023368,1.69793206,147.34,147.28,6.7897]
[1723557023672,46.44,147.32,147.27,6.7902]
[1723557023961,48.13773887,147.32,147.27,6.7901]
[1723557024484,54.92573887,147.32,147.27,6.79]
[1723557024761,6.7887,147.31,147.25,16.9778]
[1723557024976,1.69797779,147.3,147.25,16.9778]
[1723557025140,1.69797779,147.31,147.25,16.9778]
[1723557025464,6.7869,147.35,147.18,46.44]
[1723557025670,46.44,147.33,147.19,40.0]
[1723557025875,48.13764459,147.33,147.29,6.7889]
[1723557026084,46.44,147.33,147.2,20.12549]
[1723557026268,46.44,147.33,147.3,6.7888]
[1723557026478,46.44,147.36,147.32,6.7875]
[1723557026779,44.0767,147.38,147.34,6.7865]
[1723557026951,44.0767,147.38,147.33,6.7874]
[1723557027372,44.0767,147.38,147.32,0.12549]
[1723557027582,45.7738359,147.38,147.34,6.787]
[1723557028083,45.7738359,147.38,147.32,0.12549]
[1723557028254,45.7738359,147.38,147.32,0.25098]
[1723557028453,45.7738359,147.38,147.33,0.12549]
[1723557028782,1.69713415,147.37,147.35,6.7863]
[1723557029078,45.77363935,147.38,147.35,6.7863]
[1723557029251,44.0767,147.38,147.33,0.25098]
[1723557029448,44.0767,147.38,147.34,0.25098]
[1723557029667,44.0767,147.38,147.37,6.7856]
[1723557029859,44.0767,147.38,147.24,46.44]
[1723557030069,44.0767,147.38,147.34,6.7865]
[1723557030482,44.0767,147.38,147.35,6.7864]
[1723557030772,44.0767,147.38,147.36,6.786]
[1723557031159,44.0767,147.38,147.37,6.7856]
[1723557031581,354.6919,147.49,147.38,0.12549]
[1723557031582,43.5685,147.44,147.38,0.12549]
[1723557031793,1.69620409,147.43,147.38,0.50196]
[1723557032079,43.5685,147.44,147.38,0.50196]
[1723557032258,43.5685,147.44,147.43,6.7828]
[1723557032654,1.69586725,147.48,147.44,6.90749]
[1723557032891,1.69571743,147.48,147.45,6.7817]
[1723557033189,1.69571743,147.48,147.44,6.7819]
[1723557033384,1.69571743,147.48,147.45,6.7817]
[1723557033554,1.69569403,147.48,147.45,6.7817]
[1723557033755,13.81839179,147.49,147.46,6.7814]
[1723557034059,32.9563,147.5,147.44,0.12549]
[1723557034261,32.9563,147.5,147.44,0.50196]
[1723557034462,12.4431,147.54,147.51,6.7788]
[1723557034905,14.13815842,147.54,147.5,6.7796]
[1723557035057,14.13815842,147.54,147.45,0.12549]
[1723557035259,14.13815842,147.54,147.45,0.50196]
[1723557035776,14.13815842,147.54,147.51,6.7791]
[1723557036171,14.13815842,147.54,147.5,6.7796]
[1723557037066,14.13815842,147.54,147.51,6.779]
[1723557037271,12.4431,147.54,147.53,6.7782]
[1723557037589,32.1752,147.55,147.54,6.7778]
[1723557037898,32.1752,147.55,147.53,6.7781]
[1723557038072,32.1752,147.55,147.54,6.7778]
[1723557039359,20.0988,147.59,147.54,6.7778]
[1723557039690,13.3233,147.59,147.55,0.12549]
[1723557039996,15.01780042,147.59,147.55,0.12549]
[1723557040285,15.01780042,147.59,147.55,0.25098]
[1723557040457,1.6944012,147.58,147.57,6.7764]
[1723557040663,13.3233,147.59,147.55,0.12549]
[1723557040859,13.3233,147.59,147.55,0.25098]
[1723557041083,1.69453569,147.58,147.56,0.12549]
[1723557041287,1.69442471,147.57,147.56,7.02788]
[1723557041471,1.69442471,147.57,147.56,7.27886]
[1723557041671,1.6943876,147.58,147.56,7.02788]
[1723557041992,13.3233,147.59,147.56,7.02788]
[1723557042292,13.3233,147.59,147.57,6.7764]
[1723557042594,1.69436587,147.58,147.56,6.7768]
[1723557042769,1.6944527,147.57,147.56,6.7768]
[1723557042967,1.69441993,147.58,147.56,6.7768]
[1723557043171,1.69442695,147.57,147.54,0.12549]
[1723557043390,1.69442695,147.57,147.54,0.25098]
[1723557044285,1.69442695,147.57,147.56,6.7769]
[1723557044589,1.69443192,147.58,147.57,6.7764]
[1723557045278,1.69443192,147.58,147.54,0.25098]
[1723557045468,1.69461167,147.57,147.56,6.7767]
[1723557045992,1.69461167,147.57,147.55,6.7772]
[1723557046564,1.69461167,147.57,147.54,0.25098]
[1723557046772,1.69468729,147.56,147.54,0.25098]
[1723557046971,1.69468729,147.56,147.49,20.0]
[1723557047187,20.0988,147.59,147.49,20.0]
[1723557047383,1.69482717,147.58,147.54,6.7774]
[1723557047587,13.3233,147.59,147.55,6.7773]
[1723557047785,13.3233,147.59,147.56,6.7768]
[1723557047985,13.3233,147.59,147.55,6.7769]
[1723557048189,15.01794441,147.59,147.56,6.7767]
[1723557048500,13.3233,147.59,147.56,6.7768]
[1723557049505,13.3233,147.59,147.55,6.7772]
[1723557050096,13.3233,147.59,147.56,6.7768]
[1723557050688,40.32456767,147.63,147.5,12.5255]
[1723557050888,1.69429601,147.63,147.57,0.12549]
[1723557051096,1.69429601,147.63,147.59,6.7754]
[1723557051798,1.69429601,147.63,147.58,6.7758]
[1723557052098,45.4047,147.61,147.56,6.7768]
[1723557052300,45.4047,147.61,147.51,65.37647]
[1723557052301,1.69465131,147.6,147.57,6.7761]
[1723557052473,1.69465131,147.6,147.57,6.7763]
[1723557052678,8.47005131,147.6,147.55,6.7773]
[1723557052990,8.47005131,147.6,147.56,6.7768]
[1723557053200,6.7756,147.59,147.46,51.4861]
[1723557053506,1.69481045,147.58,147.55,6.7773]
[1723557053713,38.7635,147.56,147.51,6.7791]
[1723557053870,40.32508502,147.55,147.41,53.0648]
[1723557054192,1.69520429,147.54,147.42,38.63]
[1723557054400,1.69508952,147.54,147.51,6.7791]
[1723557054590,38.63,147.55,147.42,38.63]
[1723557054896,31.9866,147.56,147.55,6.7773]
[1723557055675,993.2227,147.55,147.43,9.00061578]
[1723557055901,993.2227,147.55,147.45,0.12549]
[1723557056197,993.2227,147.55,147.44,58.88098]
[1723557056198,1.69497463,147.54,147.44,20.0]
[1723557056403,1.69497463,147.54,147.43,20.0]
[1723557057326,1038.6304,147.55,147.43,20.0]
[1723557057615,1031.8527,147.55,147.42,20.0]
[1723557058004,1.69519465,147.54,147.42,58.63]
[1723557058199,993.2227,147.55,147.42,78.63]
[1723557058499,1.69510309,147.54,147.43,0.12549]
[1723557058714,993.2227,147.55,147.46,0.12549]
[1723557059028,993.2227,147.55,147.46,65.50196]
[1723557059227,993.2227,147.55,147.46,85.50196]
[1723557059401,993.2227,147.55,147.48,0.12549]
[1723557059728,1.6947316,147.54,147.48,20.37647]
[1723557060021,1.6947316,147.54,147.49,0.12549]
[1723557060221,1.6947316,147.54,147.47,20.0]
[1723557060420,1.6947316,147.54,147.45,20.0]
[1723557060625,1.6947316,147.54,147.43,20.0]
[1723557060831,1.6947316,147.54,147.4,61.31911733]
[1723557061117,12.769,147.52,147.38,68.49449433]
[1723557061324,12.769,147.52,147.4,38.63]
[1723557061916,12.769,147.52,147.38,58.86511011]
[1723557062116,47.10469723,147.51,147.38,7.08564161]
[1723557062737,38.63,147.49,147.38,7.08564161]
[1723557062898,38.63,147.49,147.36,2.70749031]
[1723557063104,38.63,147.49,147.35,38.63]
[1723557063303,38.63,147.49,147.37,7.07651807]
[1723557064017,6.7831,147.43,147.37,7.07651807]
[1723557064242,39.39334861,147.42,147.26,32.0938]
[1723557064525,30.9133,147.42,147.31,7.07972035]
[1723557064848,30.9133,147.42,147.41,6.7838]
[1723557065501,12.6671,147.46,147.45,6.7819]
[1723557066016,30.7618,147.47,147.46,6.7815]
[1723557066325,30.7618,147.47,147.46,7.15797]
[1723557066522,30.7618,147.47,147.46,7.28346]
[1723557066917,12.2511,147.5,147.46,0.50196]
[1723557067112,13.94647822,147.5,147.47,0.25098]
[1723557067430,12.2511,147.5,147.48,0.12549]
[1723557067600,12.2511,147.5,147.48,0.25098]
[1723557067803,31.6643,147.52,147.5,0.12549]
[1723557068004,1.69500582,147.51,147.5,0.12549]
[1723557068228,13.2897,147.54,147.5,0.37647]
[1723557068436,13.2897,147.54,147.51,0.12549]
[1723557068600,993.2227,147.55,147.51,0.12549]
[1723557068803,993.2227,147.55,147.52,0.12549]
[1723557069235,993.2227,147.55,147.52,0.25098]
[1723557069468,993.2227,147.55,147.54,0.12549]
[1723557069619,993.2227,147.55,147.54,0.25098]
[1723557069813,993.2227,147.55,147.54,0.50196]
[1723557070133,993.2227,147.55,147.42,12.6555]
[1723557070309,993.2227,147.55,147.44,46.4]
[1723557070504,993.2227,147.55,147.45,20.0]
[1723557070936,993.2227,147.55,147.44,46.4]
[1723557071230,1.69529376,147.54,147.42,12.6555]
[1723557071413,12.3075,147.53,147.42,12.6555]
[1723557071622,12.3075,147.53,147.42,32.6555]
[1723557071939,12.3075,147.53,147.44,46.4]
[1723557072233,993.2227,147.55,147.46,20.0]
[1723557072535,993.2227,147.55,147.51,0.12549]
[1723557072829,993.2227,147.55,147.51,45.50196]
[1723557073039,993.2227,147.55,147.51,0.50196]
[1723557073228,1.69470766,147.54,147.42,12.6555]
[1723557073421,993.2227,147.55,147.46,46.4]
[1723557073613,993.2227,147.55,147.47,45.0]
[1723557074719,993.2227,147.55,147.5,0.12549]
[1723557074918,993.2227,147.55,147.5,65.50196]
[1723557075316,993.2227,147.55,147.5,85.50196]
[1723557075933,993.2227,147.55,147.53,0.12549]
[1723557076115,993.2227,147.55,147.53,65.37647]
[1723557076319,993.2227,147.55,147.54,0.12549]
[1723557076918,993.2227,147.55,147.54,0.25098]
[1723557077114,993.2227,147.55,147.54,0.50196]
[1723557077619,954.58858533,147.55,147.54,0.50196]
[1723557077833,950.69828533,147.55,147.54,20.50196]